bitfinex-derivatives/quotes_ETHF0:USTF0_20251003
["timestamp","ask_amount","ask_price","bid_price","bid_amount"]
[1759492458300,4.0657,4487.0,4486.9,0.00275762]
[1759492470623,0.7328,4485.9,4485.5,1.53084324]
[1759492470922,0.7328,4485.3,4485.2,0.5477]
[1759492471120,0.7328,4485.3,4484.6,3.2078]
[1759492471121,0.5436,4485.0,4484.9,0.3332]
[1759492471322,0.8554,4485.0,4484.9,0.5477]
[1759492471522,0.73529171,4485.0,4484.9,0.77068278]
[1759492471816,0.00249171,4485.0,4484.9,5.77068278]
[1759492473226,0.75499171,4485.0,4484.9,0.77068278]
[1759492477529,0.00249171,4485.0,4484.9,0.77068278]
[1759492477931,0.00249171,4485.0,4484.9,5.77068278]
[1759492478132,0.00249171,4485.0,4484.9,6.96832602]
[1759492478433,0.00249171,4485.0,4484.9,5.77068278]
[1759492478938,0.00249171,4485.0,4484.9,6.96624309]
[1759492479342,0.00249171,4485.0,4484.9,5.77068278]
[1759492479636,3.2078,4486.2,4486.0,0.8471]
[1759492479830,3.7507,4486.2,4486.1,0.7228]
[1759492480333,3.9603,4486.2,4486.1,0.7228]
[1759492480534,3.9630181,4486.2,4486.1,0.7228]
[1759492480730,3.4344181,4486.2,4486.1,0.7228]
[1759492480935,0.2266181,4486.2,4486.1,0.7228]
[1759492481135,0.7552181,4486.2,4486.1,0.7228]
[1759492481338,0.0027181,4486.2,4486.1,0.7228]
[1759492481933,0.5456181,4486.2,4486.1,0.7228]
[1759492482439,0.7552181,4486.2,4486.1,0.7228]
[1759492484141,0.0027181,4486.2,4486.1,0.7228]
[1759492484439,0.0027181,4486.2,4486.1,1.52020441]
[1759492484635,0.2266181,4486.2,4486.1,1.52020441]
[1759492484841,0.7552181,4486.2,4486.1,0.7228]
[1759492487339,0.7552181,4486.2,4486.1,1.52020441]
[1759492487742,0.7552181,4486.2,4486.1,0.2072]
[1759492488042,0.4362181,4486.2,4486.0,0.79740441]
[1759492488239,0.7525,4486.1,4486.0,0.79740441]
[1759492488837,0.8788,4486.0,4485.9,1.00460441]
[1759492489042,0.8788,4486.0,4485.9,1.31350441]
[1759492491848,0.8788,4486.0,4485.9,0.79740441]
[1759492492835,0.8788,4486.0,4485.9,1.31350441]
[1759492493038,0.7525,4486.0,4485.9,1.52020441]
[1759492493843,0.7525,4486.0,4485.9,1.92117441]
[1759492495244,0.7525,4486.0,4485.9,1.12377]
[1759492496743,0.0027181,4486.2,4485.7,1.19580733]
[1759492496744,0.5429,4486.1,4486.0,0.4332]
[1759492496939,0.5429,4486.1,4486.0,2.04730187]
[1759492497344,0.2239,4486.1,4486.0,2.04730187]
[1759492497648,0.0027181,4486.2,4486.1,0.3089]
[1759492497849,0.5456181,4486.2,4486.1,0.7228]
[1759492498145,0.7552181,4486.2,4486.1,0.7228]
[1759492498342,0.7552181,4486.2,4486.0,0.79924187]
[1759492498343,0.319,4486.1,4486.0,0.79924187]
[1759492498646,0.7525,4486.1,4486.0,1.31534187]
[1759492498847,0.7525,4486.1,4486.0,0.7228]
[1759492500450,0.7525,4486.1,4486.0,1.12376]
[1759492501146,0.7525,4486.1,4486.0,1.24806]
[1759492501448,0.7525,4486.1,4486.0,0.7228]
[1759492501649,0.7525,4486.1,4486.0,0.2072]
[1759492501846,0.7525,4486.1,4486.0,1.0066838]
[1759492502045,0.7525,4486.1,4485.8,1.19580733]
[1759492502050,0.7525,4486.1,4485.9,0.7994838]
[1759492502051,0.8739,4486.0,4485.9,0.7994838]
[1759492502242,0.8739,4486.0,4485.6,1.3404838]
[1759492502243,0.7434,4485.7,4485.6,1.3404838]
[1759492502450,0.7434,4485.7,4485.6,1.5515838]
[1759492503247,0.7434,4485.7,4485.6,1.0223838]
[1759492503445,0.7434,4485.7,4485.6,0.7994838]
[1759492503750,0.7434,4485.6,4485.5,1.5515838]
[1759492505252,0.7434,4485.6,4485.5,0.7521]
[1759492505440,0.7434,4485.6,4485.5,1.55225585]
[1759492505945,0.7434,4485.6,4485.5,1.02305585]
[1759492506144,0.7434,4485.6,4485.5,0.80015585]
[1759492506547,0.5625,4485.5,4485.4,0.80015585]
[1759492506748,0.432,4485.3,4485.2,0.80015585]
[1759492506948,0.7434,4485.3,4485.2,1.34115585]
[1759492507254,0.7434,4485.3,4485.2,0.541]
[1759492507446,0.7434,4485.3,4485.2,1.34140999]
[1759492507843,0.7434,4485.3,4485.2,1.55250999]
[1759492508045,0.7434,4485.3,4485.2,0.7521]
[1759492508351,0.7434,4485.3,4485.2,1.55225611]
[1759492508550,0.528,4485.3,4485.2,1.55225611]
[1759492508750,0.3114,4485.7,4485.3,0.3181]
[1759492509053,3.9512,4485.8,4485.7,0.541]
[1759492509251,3.9512,4485.8,4485.7,0.7521]
[1759492510655,3.4244,4485.8,4485.7,0.7521]
[1759492511055,3.7358,4485.8,4485.7,0.7521]
[1759492512755,3.2078,4485.8,4485.7,0.7521]
[1759492513055,0.0027181,4486.2,4486.1,0.7521]
[1759492513056,0.2193181,4486.2,4486.1,0.7521]
[1759492513350,0.5307181,4486.2,4486.1,0.7521]
[1759492515455,0.7461181,4486.2,4486.1,0.541]
[1759492515651,0.7461181,4486.2,4485.9,0.79911543]
[1759492515961,0.8739,4486.0,4485.9,1.34011543]
[1759492516158,0.7434,4486.0,4485.9,1.55121543]
[1759492516357,0.7434,4486.0,4485.9,0.7521]
[1759492516660,0.7434,4486.0,4485.9,1.55050445]
[1759492517263,0.7434,4486.0,4485.9,0.7521]
[1759492517660,0.0027181,4486.2,4486.0,0.40096]
[1759492517958,0.0027181,4486.2,4486.1,1.15305]
[1759492519459,0.0027181,4486.2,4486.1,6.15305]
[1759492519665,0.0027181,4486.2,4486.1,6.95127998]
[1759492519963,0.0027181,4486.2,4486.1,6.15305]
[1759492521158,0.0027181,4486.2,4486.1,7.34938241]
[1759492522364,0.0027181,4486.2,4486.1,6.15305]
[1759492522561,0.7461181,4486.2,4486.1,0.7521]
[1759492522756,0.432,4485.9,4485.8,0.79739513]
[1759492523067,0.432,4485.9,4485.7,0.79739513]
[1759492523765,0.7434,4485.8,4485.7,0.83499]
[1759492524265,0.7434,4485.8,4485.7,1.15309]
[1759492525565,0.2166,4485.8,4485.7,1.15309]
[1759492525868,0.5337,4486.1,4486.0,0.4391]
[1759492526071,1.21441011,4486.1,4486.0,0.7482]
[1759492526261,0.7503,4486.1,4486.0,0.7482]
[1759492526565,1.21440896,4486.1,4486.0,1.14916]
[1759492527065,0.7503,4486.1,4486.0,1.14916]
[1759492527466,0.0027181,4486.2,4486.1,0.3091]
[1759492527667,0.0027181,4486.2,4486.1,0.7482]
[1759492528571,3.2078,4487.7,4486.5,0.96712]
[1759492528761,0.46401439,4487.6,4486.8,0.3091]
[1759492529070,0.46401439,4487.5,4487.0,0.1271]
[1759492529267,0.46401439,4487.5,4487.1,0.3091]
[1759492529469,7.1606181,4487.1,4487.0,0.4362]
[1759492529670,7.62463249,4487.1,4487.0,0.4362]
[1759492530767,7.62463249,4487.1,4487.0,0.6576]
[1759492532474,7.62463249,4487.1,4487.0,0.4362]
[1759492533868,7.62463249,4487.1,4487.0,0.6593]
[1759492534964,7.62463249,4487.1,4487.0,0.8788]
[1759492536873,7.1606181,4487.1,4487.0,0.8788]
[1759492537273,7.62452817,4487.1,4487.0,0.8788]
[1759492537474,7.62452817,4487.1,4487.0,0.6593]
[1759492539371,7.62452817,4487.1,4487.0,0.8788]
[1759492541272,7.62495533,4487.1,4487.0,0.6593]
[1759492541575,7.62495533,4487.1,4487.0,0.8788]
[1759492542471,0.46433723,4487.1,4487.0,0.8788]
[1759492542678,7.62495533,4487.1,4487.0,0.8788]
[1759492545276,7.62495533,4487.1,4487.0,0.6593]
[1759492546578,7.62495533,4487.1,4487.0,0.4362]
[1759492547573,7.62495533,4487.1,4487.0,0.6593]
[1759492547877,7.62495533,4487.1,4487.0,0.8788]
[1759492549077,7.62495533,4487.1,4486.7,3.5285]
[1759492549078,7.84795533,4487.1,4486.7,3.5285]
[1759492549277,7.1606181,4486.8,4486.7,3.5285]
[1759492549478,7.62495533,4486.8,4486.7,3.5285]
[1759492550173,7.62495533,4486.8,4486.3,0.3207]
[1759492550476,7.1606181,4486.4,4486.3,0.3207]
[1759492550675,7.62495533,4486.4,4486.3,0.3207]
[1759492550881,0.46433723,4486.4,4486.3,0.3207]
[1759492551181,0.46433723,4486.5,4486.3,0.3207]
[1759492551372,7.62495533,4486.4,4486.3,0.3207]
[1759492551772,0.46433723,4486.4,4486.3,0.3207]
[1759492552473,0.46433723,4486.5,4486.3,0.3207]
[1759492552682,7.1606181,4486.4,4486.3,0.3207]
[1759492552875,7.62495533,4486.4,4486.3,0.3207]
[1759492553074,0.46433723,4486.4,4486.3,0.3207]
[1759492553274,0.223,4486.6,4486.3,0.3207]
[1759492553275,0.46433723,4486.5,4486.3,0.3207]
[1759492553475,7.1606181,4486.4,4486.3,0.3207]
[1759492553676,7.62495533,4486.4,4486.3,0.3207]
[1759492553870,0.46433723,4486.4,4486.3,0.3207]
[1759492554071,0.46433723,4486.5,4486.3,0.3207]
[1759492554283,7.1606181,4486.4,4486.3,0.3207]
[1759492554579,0.46433723,4486.4,4486.3,0.3207]
[1759492554968,0.46433723,4486.5,4486.3,0.3207]
[1759492555168,7.1606181,4486.4,4486.3,0.3207]
[1759492555373,7.62495533,4486.4,4486.3,0.3207]
[1759492555575,0.46433723,4486.4,4486.3,1.16424]
[1759492555876,0.46433723,4486.5,4486.3,1.16424]
[1759492556079,7.62495533,4486.4,4486.3,1.16424]
[1759492556580,0.46433723,4486.4,4486.3,0.7633]
[1759492556879,0.46433723,4486.5,4486.3,0.7633]
[1759492557176,0.118,4487.3,4486.3,0.9863]
[1759492557370,0.46783003,4487.2,4487.1,0.3207]
[1759492557571,7.62844813,4487.2,4487.1,0.3207]
[1759492557771,0.46783003,4487.2,4487.1,0.3207]
[1759492558575,0.46783003,4487.2,4486.8,3.2078]
[1759492558784,7.1606181,4486.9,4486.6,0.3207]
[1759492559078,7.1606181,4486.6,4486.5,0.1305]
[1759492559278,7.62844813,4486.6,4486.5,0.4512]
[1759492560483,7.62844813,4486.6,4486.2,3.2078]
[1759492560782,7.1606181,4486.3,4486.2,3.2078]
[1759492561085,7.85144813,4486.3,4486.2,3.2078]
[1759492563981,7.85144813,4486.3,4486.2,3.5385]
[1759492570978,7.85144813,4486.3,4486.0,0.1221]
[1759492571286,7.1606181,4486.1,4486.0,0.4528]
[1759492571477,7.85144813,4486.1,4486.0,0.4528]
[1759492582494,0.69083003,4486.1,4486.0,0.4528]
[1759492585988,0.69083003,4486.1,4486.0,0.6594]
[1759492587797,0.69083003,4486.1,4485.5,0.1219]
[1759492587798,7.85144813,4486.1,4485.7,0.322]
[1759492587994,7.1606181,4485.6,4485.5,0.1219]
[1759492588191,7.62844813,4485.6,4485.5,0.6594]
[1759492590103,7.62844813,4485.6,4485.5,0.8629]
[1759492593997,7.68744813,4485.6,4485.1,3.2078]
[1759492594198,7.9204181,4485.2,4484.9,0.00158278]
[1759492594495,0.79813003,4485.5,4484.9,0.00158278]
[1759492594496,0.7598,4485.0,4484.9,0.00158278]
[1759492594800,1.22763003,4485.0,4484.9,0.20818278]
[1759492595002,8.38824813,4485.0,4484.9,0.20818278]
[1759492596002,8.38824813,4485.0,4484.9,0.52138278]
[1759492596303,8.38824813,4485.0,4484.9,0.31478278]
[1759492597406,8.49554813,4485.0,4484.9,0.00158278]
[1759492597594,8.38824813,4485.0,4484.9,0.31478278]
[1759492597902,8.38824813,4485.0,4484.9,0.52138278]
[1759492599003,8.07084813,4485.0,4484.9,0.72628278]
[1759492599604,8.61124813,4485.0,4484.9,0.52138278]
[1759492603206,8.61124813,4485.0,4484.9,0.00158278]
[1759492603412,8.71854813,4485.0,4484.9,0.00158278]
[1759492605705,8.71854813,4485.0,4484.9,0.31478278]
[1759492606806,8.71854813,4485.0,4484.9,0.00158278]
[1759492617517,1.55793003,4485.0,4484.9,0.00158278]
[1759492618512,8.71854813,4485.0,4484.9,0.00158278]
[1759492629522,1.55793003,4485.0,4484.9,0.00158278]
[1759492630523,8.71854813,4485.0,4484.9,0.00158278]
[1759492630925,8.38824813,4485.0,4484.9,0.54128278]
[1759492631120,8.61124813,4485.0,4484.9,0.54128278]
[1759492633525,8.61124813,4485.0,4484.9,0.33508278]
[1759492635516,8.38824813,4485.0,4484.9,0.33508278]
[1759492635722,8.61124813,4485.0,4484.9,0.54128278]
[1759492637129,8.71874813,4485.0,4484.9,0.00158278]
[1759492637433,8.71874813,4485.0,4484.1,0.3335]
[1759492637631,0.4172,4484.2,4484.1,0.3335]
[1759492637829,0.9577,4484.2,4484.1,0.3335]
[1759492638129,1.42553003,4484.2,4484.1,0.3335]
[1759492638323,1.42776628,4484.2,4484.1,0.54195515]
[1759492639023,1.42776628,4484.2,4484.1,0.74865515]
[1759492647932,1.42776628,4484.2,4484.1,0.33575515]
[1759492649337,1.42776628,4484.2,4484.1,0.54325515]
[1759492649536,1.42776628,4484.2,4484.1,0.33575515]
[1759492650631,1.42776628,4484.2,4484.1,0.00225515]
[1759492652034,1.42776628,4484.2,4484.1,0.30845515]
[1759492653839,1.42776628,4484.2,4484.1,0.00225515]
[1759492663439,1.20476628,4484.2,4484.1,0.00225515]
[1759492663641,1.11026628,4484.2,4484.1,0.74255515]
[1759492663941,1.43286628,4484.2,4484.1,0.30845515]
[1759492664650,1.43286628,4484.2,4484.1,0.00225515]
[1759492667148,1.43286628,4484.2,4484.1,0.30845515]
[1759492667644,1.43286628,4484.2,4484.1,0.00225515]
[1759492668244,1.43286628,4484.2,4484.1,0.30845515]
[1759492669043,1.43286628,4484.2,4484.1,0.00225515]
[1759492670648,1.43286628,4484.2,4484.1,0.30845515]
[1759492675147,1.43286628,4484.2,4484.1,0.00225515]
[1759492675840,1.43286628,4484.2,4484.1,0.30845515]
[1759492678661,1.43286628,4484.2,4484.1,0.00225515]
[1759492679955,1.11026628,4484.2,4483.5,0.4348]
[1759492680151,0.4295,4483.6,4483.5,0.6457]
[1759492680451,1.21993003,4483.6,4483.5,0.6457]
[1759492680657,8.38054813,4483.6,4483.5,0.6457]
[1759492681063,8.38054813,4483.6,4483.5,0.64772269]
[1759492681352,8.38054813,4483.6,4483.5,0.30822269]
[1759492682053,8.38054813,4483.6,4483.5,0.00202269]
[1759492682253,0.7276,4483.0,4482.9,0.33750724]
[1759492682558,8.57904813,4483.0,4482.9,0.33750724]
[1759492682749,8.57904813,4483.0,4482.9,0.55670724]
[1759492683153,8.57904813,4483.0,4482.9,0.55836844]
[1759492684359,1.11243003,4483.0,4482.9,0.77096844]
[1759492687653,0.46783003,4483.0,4482.9,0.77096844]
[1759492687859,0.69083003,4483.0,4482.9,0.77096844]
[1759492688060,0.90123003,4483.0,4482.9,0.77096844]
[1759492689255,1.41843003,4483.0,4482.9,0.77096844]
[1759492693668,1.11243003,4483.0,4482.9,0.77096844]
[1759492694367,1.41843003,4483.0,4482.9,0.77096844]
[1759492695473,1.41843003,4483.0,4482.9,0.55836844]
[1759492699873,8.68654813,4483.0,4482.9,0.02396844]
[1759492700273,0.7276,4482.2,4482.1,0.5344]
[1759492701168,1.19171815,4482.2,4482.1,0.53631186]
[1759492704678,1.19171815,4482.2,4482.1,0.31711186]
[1759492706482,1.19171815,4482.2,4482.1,0.00191186]
[1759492708280,1.19171815,4482.2,4482.1,0.30561186]
[1759492709376,0.67531815,4482.2,4482.1,0.73681186]
[1759492709582,0.67041815,4482.2,4482.1,0.73681186]
[1759492710178,1.21601815,4482.2,4482.1,0.51891186]
[1759492710377,1.21601815,4482.2,4482.1,0.73681186]
[1759492710577,0.88501815,4482.2,4482.1,0.73681186]
[1759492712583,1.19411815,4482.2,4482.1,0.73681186]
[1759492712976,1.19411815,4482.2,4482.1,0.30561186]
[1759492714184,1.19411815,4482.2,4482.1,0.00191186]
[1759492714386,1.19411815,4482.2,4482.1,0.32651186]
[1759492714682,1.19411815,4482.2,4482.1,0.53861186]
[1759492715288,1.19411815,4482.2,4482.1,0.32651186]
[1759492720590,1.19411815,4482.2,4482.1,0.00191186]
[1759492721093,1.19411815,4482.2,4482.1,0.32651186]
[1759492721492,1.19411815,4482.2,4482.1,0.53861186]
[1759492724695,1.19411815,4482.2,4482.1,0.32651186]
[1759492724897,1.19411815,4482.2,4482.1,0.53861186]
[1759492727498,1.19411815,4482.2,4482.1,0.74031186]
[1759492727795,1.41711815,4482.2,4482.1,0.74031186]
[1759492728095,1.10801815,4482.2,4482.1,0.74031186]
[1759492728292,0.67391815,4482.2,4482.1,0.74031186]
[1759492728493,1.20561815,4482.2,4482.1,0.74031186]
[1759492732798,1.20561815,4482.2,4482.1,0.32651186]
[1759492733601,1.20561815,4482.2,4482.1,0.53861186]
[1759492737107,0.89651815,4482.2,4482.1,0.74031186]
[1759492737301,0.67391815,4482.2,4482.1,0.74031186]
[1759492737604,0.89651815,4482.2,4482.1,0.74031186]
[1759492737806,1.20561815,4482.2,4482.1,0.74031186]
[1759492741904,0.89651815,4482.2,4482.1,0.74031186]
[1759492744509,1.20651815,4482.2,4482.1,0.74031186]
[1759492746310,1.20651815,4482.2,4482.1,0.00191186]
[1759492750011,6.20651815,4482.2,4481.5,0.3234]
[1759492750310,11.0944181,4481.6,4481.5,0.3234]
[1759492750511,11.78153625,4481.6,4481.5,0.3234]
[1759492751109,11.78153625,4481.6,4481.5,0.32586352]
[1759492752015,11.78153625,4481.6,4481.5,0.00246352]
[1759492752615,11.78153625,4481.6,4481.5,0.32586352]
[1759492760018,11.78153625,4481.6,4481.5,0.54396352]
[1759492760526,11.24853625,4481.6,4481.5,0.88976352]
[1759492760817,4.62091815,4481.6,4481.5,0.54396352]
[1759492761127,0.726,4481.1,4481.0,0.5415]
[1759492761423,8.57373625,4481.1,4481.0,0.5415]
[1759492761917,8.57373625,4481.1,4481.0,0.54386495]
[1759492762423,8.57373625,4481.1,4481.0,0.32576495]
[1759492762922,8.57373625,4481.1,4481.0,0.00236495]
[1759492763122,8.75295764,4481.1,4481.0,0.00236495]
[1759492763623,8.57373625,4481.1,4481.0,0.00236495]
[1759492764226,8.97513625,4481.1,4481.0,0.00236495]
[1759492765122,8.97513625,4481.1,4481.0,0.32576495]
[1759492766917,8.97513625,4481.1,4481.0,0.54386495]
[1759492768928,8.97513625,4481.1,4481.0,0.32576495]
[1759492772134,8.66513625,4481.1,4481.0,0.86526495]
[1759492772423,8.99793625,4481.1,4481.0,0.86526495]
[1759492773829,8.99793625,4481.1,4481.0,0.74116495]
[1759492774033,8.99793625,4481.1,4481.0,0.53176495]
[1759492777136,8.99793625,4481.1,4481.0,0.32576495]
[1759492778538,8.99793625,4481.1,4481.0,0.00236495]
[1759492778926,12.20573625,4481.1,4481.0,0.00236495]
[1759492782442,12.20573625,4481.1,4481.0,0.33116495]
[1759492783239,11.98273625,4481.1,4481.0,0.33116495]
[1759492783441,12.20573625,4481.1,4481.0,0.55376495]
[1759492785439,0.46411815,4481.1,4481.0,0.88726495]
[1759492785644,0.6695176,4481.5,4481.4,0.7608]
[1759492788144,0.6695176,4481.5,4481.4,1.16217]
[1759492788342,0.6695176,4481.5,4481.4,0.7608]
[1759492790654,0.66953721,4481.5,4481.4,1.16217]
[1759492791152,0.66953721,4481.5,4481.4,0.7608]
[1759492791856,0.66953721,4481.5,4481.4,1.16217]
[1759492792554,0.66953721,4481.5,4481.4,0.7608]
[1759492795454,0.46443721,4481.5,4481.4,0.7608]
[1759492796656,0.46443721,4481.5,4481.4,4.36997]
[1759492798056,0.223,4482.0,4481.5,0.40136]
[1759492798262,7.3836181,4482.0,4481.9,0.7608]
[1759492798461,8.05268599,4482.0,4481.9,0.7608]
[1759492798761,7.82968599,4482.0,4481.9,0.7608]
[1759492800255,0.46396789,4482.0,4481.9,8.9686]
[1759492801266,0.46396789,4482.0,4481.9,9.36993]
[1759492801468,0.7562,4482.8,4482.7,0.5514]
[1759492801671,1.2197695,4482.8,4482.7,0.5514]
[1759492801865,1.2197695,4482.8,4482.4,0.3055]
[1759492802068,0.7456,4482.5,4482.4,0.3055]
[1759492802261,1.2091695,4482.5,4482.4,0.3055]
[1759492802567,8.3697876,4482.5,4482.0,0.3471]
[1759492802762,7.6241876,4482.4,4482.1,0.221]
[1759492802967,0.7456,4482.2,4482.1,0.5265]
[1759492803167,1.2091695,4482.2,4482.1,0.5265]
[1759492803360,1.2091695,4482.2,4482.1,0.7338]
[1759492804365,1.2091695,4482.2,4481.6,0.3055]
[1759492804669,0.7456,4481.9,4481.8,0.5265]
[1759492804857,1.2091695,4481.9,4481.8,0.7338]
[1759492810968,1.20901037,4481.9,4481.8,0.7338]
[1759492811770,0.88081037,4481.9,4481.6,0.3055]
[1759492811958,0.99491037,4481.8,4481.7,0.5265]
[1759492812158,1.20901037,4481.8,4481.7,0.5265]
[1759492812358,0.46341037,4481.8,4481.7,0.7338]
[1759492812562,0.3282,4483.0,4481.9,0.3055]
[1759492812771,0.3282,4483.0,4482.0,0.1294]
[1759492812972,0.7456,4483.0,4482.9,0.5265]
[1759492813463,7.9062181,4483.0,4482.9,0.5265]
[1759492813863,7.5780181,4483.0,4482.9,0.7338]
[1759492814068,0.2141,4483.6,4483.5,0.8632]
[1759492818573,7.1606181,4483.9,4483.8,0.7338]
[1759492818774,7.3747181,4483.9,4483.8,0.7338]
[1759492819677,7.9062181,4483.9,4483.8,0.7338]
[1759492820278,0.7456,4483.9,4483.8,0.7338]
[1759492821377,0.7456,4483.9,4483.1,0.3055]
[1759492821378,0.7456,4483.2,4483.1,0.3055]
[1759492821577,0.4174,4483.2,4483.1,0.7338]
[1759492822476,0.2141,4483.2,4483.1,0.7338]
[1759492822684,0.148,4483.7,4483.5,0.8632]
[1759492822881,0.3621,4483.7,4483.6,0.7338]
[1759492823084,7.5227181,4483.7,4483.6,0.7338]
[1759492823277,0.3621,4483.7,4483.6,0.7338]
[1759492823983,0.2141,4483.7,4483.6,0.7338]
[1759492824484,0.67526994,4483.7,4483.6,0.7338]
[1759492825987,0.67532461,4483.7,4483.6,0.7338]
[1759492835188,0.46122461,4483.7,4483.6,0.7338]
[1759492838288,0.66872461,4483.7,4483.6,0.7338]
[1759492840493,0.88852461,4483.7,4483.6,0.7338]
[1759492840694,1.19252461,4483.7,4483.6,0.7338]
[1759492842089,0.88852461,4483.7,4483.6,0.7338]
[1759492842397,0.66872461,4483.7,4483.6,0.7338]
[1759492842599,0.46122461,4483.7,4483.6,0.7338]
[1759492843501,0.66872461,4483.7,4483.6,0.7338]
[1759492843798,0.46122461,4483.7,4483.6,0.7338]
[1759492844799,0.46122461,4483.7,4483.6,1.13498]
[1759492848194,0.46122461,4483.7,4483.6,0.7338]
[1759492849201,0.46122461,4483.7,4483.6,6.13498]
[1759492852515,0.46122461,4483.7,4483.6,0.7338]
[1759492852715,0.66872461,4483.7,4483.6,0.7338]
[1759492853714,0.46122461,4483.7,4483.6,0.7338]
[1759492855617,0.66872461,4483.7,4483.6,0.7338]
[1759492857516,0.88852461,4483.7,4483.6,0.7338]
[1759492857716,1.19252461,4483.7,4483.6,0.7338]
[1759492858017,0.88852461,4483.7,4483.6,0.7338]
[1759492858315,0.66872461,4483.7,4483.6,1.13498]
[1759492858816,0.66872461,4483.7,4483.6,0.7338]
[1759492859617,0.46122461,4483.7,4483.6,1.13498]
[1759492859913,0.00223625,4484.2,4484.1,0.7446]
[1759492860112,0.00223625,4484.2,4484.1,4.57653]
[1759492860304,0.00223625,4484.2,4484.1,4.1754]
[1759492860305,0.20973625,4484.2,4484.1,4.1754]
[1759492860518,0.20973625,4484.2,4484.1,3.9524]
[1759492860705,0.20973625,4484.2,4484.1,4.1754]
[1759492861110,0.73353625,4484.2,4484.1,4.1754]
[1759492862416,0.42953625,4484.2,4484.1,4.1754]
[1759492863318,0.20973625,4484.2,4484.1,4.1754]
[1759492864011,0.00223625,4484.2,4484.1,4.1754]
[1759492867114,0.00223625,4484.2,4484.1,4.57653]
[1759492867814,0.4163,4485.6,4485.5,0.8578]
[1759492868213,7.5769181,4485.6,4485.5,0.8578]
[1759492868424,7.8966181,4485.6,4485.5,0.8578]
[1759492868715,7.57905974,4485.6,4485.5,0.86009894]
[1759492869120,7.89875974,4485.6,4485.5,0.86009894]
[1759492869511,0.1072,4485.5,4484.6,0.3038]
[1759492869719,0.736,4484.7,4484.6,0.7388]
[1759492870508,0.736,4484.7,4484.6,0.5158]
[1759492870714,0.736,4484.7,4484.6,0.51758988]
[1759492871918,1.19793706,4484.7,4484.6,0.51758988]
[1759492872826,1.19793706,4484.7,4484.6,0.73738988]
[1759492878628,1.19793706,4484.7,4484.6,0.51758988]
[1759492883631,1.19793706,4484.7,4484.6,0.73738988]
[1759492886929,1.19793706,4484.7,4484.6,0.30558988]
[1759492887830,1.19793706,4484.7,4484.6,0.73238988]
[1759492887831,0.87823706,4484.7,4484.6,0.73238988]
[1759492888536,0.46193706,4484.7,4484.6,0.73238988]
[1759492893640,0.66863706,4484.7,4484.6,0.73238988]
[1759492893842,1.18233706,4484.7,4484.6,0.73238988]
[1759492896139,0.87903706,4484.7,4484.6,0.73238988]
[1759492900437,1.18233706,4484.7,4484.6,0.73238988]
[1759492900836,1.18233706,4484.7,4484.6,0.52568988]
[1759492902147,0.66863706,4484.7,4484.6,0.72818988]
[1759492903440,0.46193706,4484.7,4484.6,1.12927988]
[1759492905240,0.30544164,4485.6,4485.5,0.2229]
[1759492905540,0.30544164,4485.6,4485.5,0.8768]
[1759492905541,0.72364164,4485.6,4485.5,0.8768]
[1759492905751,8.34895784,4485.6,4485.5,0.8768]
[1759492905935,8.34895784,4485.6,4485.5,0.5495]
[1759492906138,8.34895784,4485.6,4485.5,0.3266]
[1759492906338,8.34895784,4485.6,4485.2,0.223]
[1759492906547,0.7215,4485.4,4485.3,0.3266]
[1759492906748,1.1861981,4485.4,4485.3,0.3266]
[1759492906946,1.1861981,4485.4,4485.2,0.223]
[1759492907245,8.3468162,4485.3,4485.2,0.223]
[1759492907448,1.1861981,4485.3,4485.2,0.223]
[1759492907641,8.3468162,4485.3,4485.2,0.5496]
[1759492908242,8.3468162,4485.3,4484.7,0.3266]
[1759492908443,0.4182,4484.8,4484.7,0.5496]
[1759492908644,0.8828981,4484.8,4484.7,0.7725]
[1759492908845,8.0435162,4484.8,4484.7,0.7725]
[1759492909052,8.3468162,4484.8,4484.7,0.7725]
[1759492909447,8.0435162,4484.8,4484.7,0.975]
[1759492909745,8.3468162,4484.8,4484.7,0.975]
[1759492909951,8.3468162,4484.8,4484.6,0.22478988]
[1759492910148,8.3468162,4484.7,4484.6,0.32838988]
[1759492910343,1.1861981,4484.7,4484.6,0.00178988]
[1759492912352,0.8828981,4484.7,4484.6,0.75378988]
[1759492912549,1.1861981,4484.7,4484.6,0.75378988]
[1759492913559,0.8828981,4484.7,4484.6,0.75378988]
[1759492913853,0.6724981,4484.7,4484.6,0.75378988]
[1759492918449,0.8828981,4484.7,4484.6,0.75378988]
[1759492918850,1.1861981,4484.7,4484.6,0.55128988]
[1759492919152,1.1861981,4484.7,4484.6,0.55138988]
[1759492919353,1.1861981,4484.7,4484.6,0.00178988]
[1759492920957,1.1861981,4484.7,4484.6,0.55128988]
[1759492921360,1.1861981,4484.7,4484.6,0.32838988]
[1759492922164,1.1861981,4484.7,4484.6,0.00178988]
[1759492925265,4.3939981,4484.7,4484.6,0.00178988]
[1759492925968,4.3939981,4484.7,4484.6,0.33188988]
[1759492927460,4.3939981,4484.7,4484.6,0.00178988]
[1759492929465,4.3939981,4484.7,4484.6,0.21628988]
[1759492929667,2.84312612,4486.0,4485.5,0.554]
[1759492929668,0.21224164,4485.6,4485.5,0.554]
[1759492929865,0.21224164,4485.6,4485.5,0.8841]
[1759492929866,7.57725974,4485.6,4485.5,0.8841]
[1759492930067,7.90995974,4485.6,4485.1,0.3301]
[1759492930271,0.7472,4485.2,4485.1,0.3301]
[1759492930473,7.9078181,4485.2,4484.8,0.3301]
[1759492930774,0.7472,4484.8,4484.7,0.7676]
[1759492931977,0.7472,4484.8,4484.7,0.9802]
[1759492932279,0.4145,4484.8,4484.7,0.9802]
[1759492934372,0.2101,4484.8,4484.7,0.9802]
[1759492934575,0.2101,4485.1,4485.0,0.8841]
[1759492934774,0.00214164,4485.6,4485.0,4.0919]
[1759492934775,0.3327,4485.4,4485.0,4.0919]
[1759492935076,7.9078181,4485.4,4485.3,0.7572]
[1759492935673,7.5751181,4485.4,4485.3,0.7572]
[1759492935874,7.1606181,4485.4,4485.3,0.7572]
[1759492937282,7.1606181,4485.4,4485.3,1.15823]
[1759492938086,7.1606181,4485.4,4485.3,6.15823]
[1759492940280,0.00214164,4485.6,4485.5,0.8841]
[1759492940479,0.00214164,4485.6,4485.5,4.3149]
[1759492946689,0.00214164,4485.6,4485.5,4.71591]
[1759492950091,0.00214164,4485.6,4485.5,4.3149]
[1759492950592,0.00214164,4485.6,4485.5,4.71591]
[1759492951896,0.00214164,4485.6,4485.5,4.3149]